Workbook

Sheet Effektkalky
B1: Liten skärm 80% zoom. Stor 100%

Sheet Meny
F1: Meny
F4: Liten skärm 100% zoom. Stor 100%
A9: Vägledning till hur effektkalkylen ska fyllas i på respektive blad
A14: Här anges timmar, frånvaro, lön, arbetsdifferentiering subventionering
A19: Här visas kostnader för ordinarie verksamhet, arbetsdifferentiering samt normalrekrytering
A24: Här visas effekter för idag, normalrekrytering samt arbetsdifferentiering
A29: Här anges tjänstgöringsgrad, semestertillägg, löneökning och personalomkostnad för medarbetare
A34: Här anges semestertillägg, löneökning och personalomkostnad för serviceassistent
A39: Här anges lönetak för subventionering. Här visas också månadslön efter sjukfrånvaro
A45: Layout-design\Lars Kinnerbäck\VU\AVA\Skövde kommun
A46: Version 5\2020-12-10

Sheet Instruktion
F1: Instruktion
F4: Liten skärm 80% zoom. Stor 100%
B8: Process | H8: Resultat | N8: Diagram | T8: Lönekostnad för MA | Z8: Lönekostnad för SA | AF8: Data
B9: Under rubriken "Personalkostnad" anges tre (3) värden. Klicka på respektive i-ikon för mer information | H9: Här presenteras kostnader utifrån de värden som angetts i bladen; "Process", "Lönekostnad för MA" samt "Lönekostnad för SA" | N9: Här presenteras effekterna utifrån de värden som angetts i bladen; "Process", "Lönekostnad för MA" samt "Lönekostnad för SA" | T9: Här anges fem (5) värden. Klicka på respektive i-ikon för mer information | Z9: Här anges fyra (4) värden. Klicka på respektive i-ikon för mer information | AF9: Här anges ett (1) värde
B12: Under rubriken "Effekt" anges två (2) värden. Klicka på respektive i-ikon för mer information
B15: Under rubriken "Serviceassistent" anges fyra (4) värden. Klicka på respektive i-ikon för mer information
B18: Under rubriken "Effektresultat" presenteras kostnads- och resursförändring
B21: Under rubriken "Personalkostnader MA" presenteras summan av personalkostnader för medarbetare
B24: Under rubriken "Effekter" presenteras resultat av angivna värden i "Effekt"
B27: Under rubriken "Personal-omkostnader SA" presenteras summan av personalkostnader för serviceassistent

Sheet Process
D1: Processen
D4: Liten skärm 80% zoom. Stor 100%
C8: Personalkostnad | H8: Personalkostnader MA | I8: Per medarbetare | J8: Verksamheten
D9: Ange värden | H9: ='Lönekostnad för MA'!I21 -> Summa personalkostnad: | I9: ='Lönekostnad för MA'!K21 -> 606771.5313 | J9: ='Lönekostnad för MA'!L21 -> 24270861.25
C10: Medarbetare: | D10: 40 | H10: ='Lönekostnad för MA'!J22 -> Varav PF: | I10: ='Lönekostnad för MA'!K22 -> 177957.7282 | J10: ='Lönekostnad för MA'!L22 -> 7118309.13
C11: Sjukfrånvaro: | D11: 0.04 | H11: ='Lönekostnad för MA'!J23 -> Varav semesterersättning: | I11: ='Lönekostnad för MA'!K23 -> 9966.641656 | J11: ='Lönekostnad för MA'!L23 -> 398665.6663
C12: Månadslön: | D12: 36000 | H12: ='Lönekostnad för MA'!J24 -> Personalkostnad per månad inklusive PF (snitt): | I12: ='Lönekostnad för MA'!K25 -> 50564.29427 | J12: ='Lönekostnad för MA'!L25 -> 2022571.771
C15: Effekt | H15: Effekter
C16: Arbetsdifferentiering | D16: Ange värden | H16: Effekt: | I16: =I19/I18 -> 0.983974359
C17: Okvalificerade timmar: | D17: 25 | H17: Motsvarar antal resurser: | I17: =I16*D10 -> 39.35897436
C18: Timmar per vecka: | D18: 39 | H18: Totalt antal arbetstimmar: | I18: =D10*D18 -> 1560
H19: Effektiva arbetstimmar: | I19: =I18-D17 -> 1535
C22: Serviceassistent | H22: Personalkostnader SA
D23: Ange värden | H23: Nettokostnad (lönekostnad - intäkt): | I23: =I24-(I29) -> 100929.2678
C24: Timmar per vecka: | D24: 25 | H24: ='Lönekostnad för SA'!I21 -> Summa personalkostnad: | I24: ='Lönekostnad för SA'!K21 -> 207083.114
C25: Sjukfrånvaro: | D25: 0.08 | H25: ='Lönekostnad för SA'!J22 -> Varav PF: | I25: ='Lönekostnad för SA'!K22 -> 60734.62354
C26: Månadslön: | D26: 20000 | H26: ='Lönekostnad för SA'!J23 -> Varav semesterersättning: | I26: ='Lönekostnad för SA'!K23 -> 3401.483234
C27: Subventionering: | D27: 0.75 | H27: ='Lönekostnad för SA'!J24 -> Personalkostnad per månad inklusive PF (snitt): | I27: ='Lönekostnad för SA'!K25 -> 17256.92617
H28: Personalkostnad per månad inkl. pf-subventionering i snitt: | I28: =I27-Data!D13 -> 8410.772321
H29: Summa subventionering: | I29: =Data!D14 -> 106153.8462
H30: PF=personalomkostnad
C32: Effektresultat | H32: Effektresultat diagram
J33: Resursökning
C34: Resursökning: | D34: =D24*(1-(D25-D11))/D18 -> 0.6153846154 | J34: =D34 -> 0.6153846154
C35: Ordinarie kostnad: | D35: =D34*I9 -> 373397.8654
C36: Faktisk kostnad: | D36: =I23 -> 100929.2678 | J36: Kostnadsbesparing
C37: Kostnadsbesparing: | D37: =D35-D36 -> 272468.5975 | J37: =D37 -> 272468.5975

Sheet Resultat
D1: Resultat
D4: Liten skärm 100% zoom. Stor 100%
D8: Ordinarie verksamhet | E8: Arbetsdifferentiering | F8: Normalrekrytering
C9: Kostnad | D9: =Process!J9 -> 24270861.25 | E9: =D9+Process!I23 -> 24371790.52 | F9: =D9+Process!D35 -> 24644259.12
C10: Resurs
C11: Effektkostnad

Sheet Diagram
D1: Diagram
D4: Liten skärm 100% zoom. Stor 100%
D8: Effekt | E8: Kostnad | F8: Effekt/kostnadsenhet
C9: Idag | D9: =Process!D37 -> 272468.5975 | E9: =Process!D36 -> 100929.2678
C10: Normarekrytering | D10: =Process!#REF! ->  | E10: =Process!#REF! -> 
C11: Arbetsdifferentiering | D11: =Process!AG41 -> 0 | E11: =Process!AG42 -> 0

Sheet Lönekostnad för SA
C1: Lönekostnad för serviceassistent
C4: Liten skärm 90% zoom. Stor 100%
G9: Ange värden
G10: Sem.tillägg | H10: PF
B11: PF=personalomkostnad | C11: Månadslön (anges i kronor) | D11: Tjänst-görings-grad i % | G11: 0.0167 | H11: 0.415 | L11: =Process!D10 -> 40
G12: Semester-tillägg | H12: PF | I12: Månadslön efter uppskjuten löneökning
L13: =C17/1000 -> 0
E14: Ange värden | J14: Lönekostnad exklusive PF (i tkr) | K14: Lönekostnad inklusive PF (i tkr)
B15: Befattning | E15: Månader | F15: Löneökning | L15: Arbetslagskostnad
B16: Personalkostnad (snitt) | C16: =Process!D26 -> 20000 | D16: =Process!D24/Process!D18 -> 0.641025641 | E16: 12 | F16: 0.017 | G16: =G11 -> 0.0167 | H16: =H11 -> 0.415 | I16: =(C16*D16*F16)+(C16*D16) -> 13038.46154 | J16: =(I16*E16+I16*E16*G16) -> 159074.4462 | K16: =(J16*H16+J16) -> 225090.3413 | L16: =K16*$L$11 -> 9003613.652
L17: 0
A18: Frånvaro: | B18: =Process!D25 -> 0.08 | J18: =(SUM(J16:J17)*-B18) -> -12725.95569 | K18: =(SUM(K16:K17)*-B18) -> -18007.2273 | L18: -720289.0922
I19: Fyllnads- och övertidsersättning, OB tillägg m.m., konto 5027 och 5028 + PF: | L19: 0
I20: Övriga tillägg, konto 5029 + PF: | L20: 0
I21: Summa personalkostnad: | J21: =SUM(J16:J20) -> 146348.4905 | K21: =SUM(K16:K20)+L13 -> 207083.114 | L21: 8283324.56
J22: Varav PF: | K22: =K21-J21 -> 60734.62354 | L22: 2429384.942
J23: Varav semesterersättning: | K23: =K21-(K21/(1+G11)) -> 3401.483234 | L23: 136059.3294
J24: Personalkostnad per månad inklusive PF (snitt):
K25: =K21/12 -> 17256.92617 | L25: =K25*$L$11 -> 690277.0467

Sheet Lönekostnad för MA
C1: Lönekostnad för medarbetare
C4: Liten skärm 90% zoom. Stor 100%
G9: Ange värden
G10: Sem.tillägg | H10: PF
B11: PF=personalomkostnad | C11: Månadslön (anges i kronor) | G11: 0.0167 | H11: 0.415 | I11: Månadslön efter uppskjuten löneökning | L11: =Process!D10 -> 40
G13: Semester-tillägg | H13: PF | K13: Lönekostnad inklusive PF (i tkr) | L13: =C17/1000 -> 0
D14: Ange värden | J14: Lönekostnad exklusive PF (i tkr)
B15: Befattning | D15: Tjg | E15: Månader | F15: Löneökning | L15: Arbetslagskostnad
B16: Personalkostnad (snitt) | C16: =Process!D12 -> 36000 | D16: 1 | E16: 12 | F16: 0.017 | G16: =G11 -> 0.0167 | H16: =H11 -> 0.415 | I16: =(C16*D16*F16)+(C16*D16) -> 36612 | J16: =(I16*E16+I16*E16*G16) -> 446681.0448 | K16: =(J16*H16+J16) -> 632053.6784 | L16: =K16*$L$11 -> 25282147.14
L17: =K17*$L$11 -> 0
A18: Frånvaro: | B18: =Process!D11 -> 0.04 | J18: =(SUM(J16:J17)*-B18) -> -17867.24179 | K18: =(SUM(K16:K17)*-B18) -> -25282.14714 | L18: -1011285.885
I19: Fyllnads- och övertidsersättning, OB tillägg m.m., konto 5027 och 5028 + PF: | L19: =K19*$L$11 -> 0
I20: Övriga tillägg, konto 5029 + PF: | L20: =K20*$L$11 -> 0
I21: Summa personalkostnad: | J21: =SUM(J16:J20) -> 428813.803 | K21: =SUM(K16:K20)+L13 -> 606771.5313 | L21: 24270861.25
J22: Varav PF: | K22: =K21-J21 -> 177957.7282 | L22: 7118309.13
J23: Varav semesterersättning: | K23: =K21-(K21/(1+G11)) -> 9966.641656 | L23: 398665.6663
J24: Personalkostnad per månad inklusive PF (snitt):
K25: =K21/12 -> 50564.29427 | L25: =K25*$L$11 -> 2022571.771

Sheet Data
D1: Data
D4: Liten skärm 100% zoom. Stor 100%
D8: Ange värde
C9: Lönetak subventionering | D9: 20000
C10: Månadslön efter sjukfrånvaro | D10: =Process!D26*(1-Process!D25)*Process!D24/Process!D18 -> 11794.87179
C11: Subventionering i procent | D11: =Process!D27 -> 0.75
C12: Sjukfrånvaro | D12: ='Lönekostnad för SA'!B18 -> 0.08
C13: Månadsresultat | D13: =D10*D11 -> 8846.153846
C14: Årsresultat | D14: =D13*12 -> 106153.8462
